Cogmind - Beta 14 @@@ ROGUE MODE // 2024.08.07 @ 10:48:01 Player: Minty Result: Destroyed by G-34 Mercenary with Small Laser Performance ------------- Evolutions (1) 500 Regions Visited (2) 400 Robots Destroyed (25) 125 Value Destroyed (592) 592 Prototype IDs (3) 60 Alien Tech Used (0) 0 Bonus (0) 0 TOTAL SCORE: 1677 Bonus ------- None Cogmind --------- Core Integrity 0/400 Matter 300/300 Energy 253/265 System Corruption 8% Temperature Cool (6) Movement Walking (120) Location -9/Materials Parts ------- > --- POWER (1) -------- Reinforced Ion Engine > --- PROPULSION (2) --- Aluminum Leg Aluminum Leg > --- UTILITY (4) ------ Improved Heat Sink Signal Interpreter Terrain Scan Processor Terrain Scan Processor > --- WEAPON (2) ------- Axe Axe > --- INVENTORY (5) ---- Light EM Pulse Cannon Light EM Pulse Cannon Ion Cannon EMP Blaster Rocket Launcher Peak State ------------ > --- POWER ------------ Reinforced Ion Engine > --- PROPULSION ------- Aluminum Leg Aluminum Leg > --- UTILITY ---------- Improved Heat Sink Signal Interpreter Terrain Scan Processor Terrain Scan Processor > --- WEAPON ----------- Axe Axe > --- INVENTORY -------- Light EM Pulse Cannon Light EM Pulse Cannon Ion Cannon EMP Blaster Grenade Launcher [Rating: 19] Favorites ----------- Power Reinforced Ion Engine Engine Reinforced Ion Engine Propulsion Aluminum Leg Leg Aluminum Leg Wheel Wheel Utility Terrain Scan Processor Device ECM Suite Storage Small Storage Unit Processor Terrain Scan Processor Protection Utility Shielding Weapon Axe Energy Gun Small Laser Energy Cannon Advanced Beam Cannon Ballistic Gun Assault Rifle Slashing Weapon Axe Build | -11 -10 -9 ------- Run | Yrd Mat Mat Slots Evolved 2 | . . 2 Power . | . . . Propulsion . | . . . Utility 2 | . . 2 Weapon . | . . . Parts Attached 30 | . 5 25 Power 2 | . . 2 Engine 2 | . . 2 Core . | . . . Reactor . | . . . Propulsion 10 | . 3 7 Treads . | . . . Leg 5 | . . 5 Wheel 5 | . 3 2 Hover . | . . . Flight . | . . . Utility 9 | . 1 8 Device 5 | . 1 4 Storage . | . . . Processor 3 | . . 3 Hackware . | . . . Protection 1 | . . 1 Artifact . | . . . Weapon 9 | . 1 8 Energy Gun . | . . . Energy Cannon 5 | . 1 4 Ballistic Gun . | . . . Ballistic Cannon . | . . . Launcher . | . . . Special Weapon . | . . . Impact Weapon . | . . . Slashing Weapon 4 | . . 4 Piercing Weapon . | . . . Special Melee Weapon . | . . . Unidentified Prototypes 1 | . . 1 Parts Lost 8 | . . 8 Power 1 | . . 1 Propulsion 4 | . . 4 Utility 3 | . . 3 Weapon . | . . . Highest Loss Streak 8 | . . 8 To Critical Strikes . | . . . Average Slot Usage (%) 89 | . 98 85 Engine 11 | . 14 10 Leg 14 | . 12 14 Wheel 8 | . 15 6 Device 11 | . 12 11 Storage 6 | . 14 3 Processor 12 | . . 16 Energy Gun 2 | . 8 . Energy Cannon 5 | . 5 5 Ballistic Gun 3 | . 14 . Slashing Weapon 12 | . . 16 Peak Build Rating 19 | . 7 19 Average Rating 12 | . 6 13 On Entrance 6 | 6 6 7 Naked Turns . | . . . Heaviest Build 24 | 11 14 24 Greatest Support 20 | 20 20 20 Greatest Overweight (x) 2 | . 1 2 Average Overweight (x) . | . . . Largest Inventory Capacity 8 | . 8 8 Average Capacity 6 | . 8 5 Most Carried 8 | . 8 8 Average Carried 6 | . 7 5 Final Capacity 8 | 8 8 5 Final Carried 8 | 6 8 5 Class Distribution -------------------- 56% | Mutant 43% | Scavenger-Mutant Dominant Class ---------------- Mutant | -10/Materials Scavenger-Mutant | -9/Materials Resources | -11 -10 -9 ----------- Run | Yrd Mat Mat Matter Collected 551 | 200 95 256 Remotely . | . . . Salvage Created 1019 | . 109 910 Parts 65 | . 8 57 Haulers Intercepted 4 | . 1 3 Recyclers Shooed 1 | . 1 . Parts Field Recycled . | . . . Retrieved Matter . | . . . Parts Self-Destructed . | . . . Prevented . | . . . Kills | -11 -10 -9 ------- Run | Yrd Mat Mat Combat Hostiles Destroyed 15 | . 1 14 Melee 11 | . . 11 Cannons 4 | . 1 3 Classes Destroyed 9 | . 3 6 Worker 3 | . 2 1 Hauler 4 | . 1 3 Recycler 1 | . . 1 Mechanic 1 | . . 1 Watcher 1 | . . 1 Swarmer 1 | . . 1 Grunt 9 | . 1 8 Brawler 2 | . . 2 Sentry 3 | . . 3 Best Kill Streak 4 | . 2 4 Combat Bots Only 3 | . 1 3 Max Kills in Single Turn 1 | . 1 1 Gunslinging . | . . . Exploded . | . . . Melee 1 | . . 1 Uniques/NPCs Destroyed . | . . . Combat | -11 -10 -9 -------- Run | Yrd Mat Mat Hostile Shots Fired 159 | . 12 147 Missed 33 | . . 33 Damage Taken 1468 | . 134 1334 Core 454 | . 45 409 Absorbed by Shields . | . . . Redirected to Shielding 32 | . . 32 Core Remaining (%) 91 | 100 82 . Volleys Fired 21 | . 15 6 Largest 2 | . 2 2 Hottest 136 | . 80 136 Shots Fired 42 | . 30 12 Gun 20 | . 20 . Cannon 22 | . 10 12 Launcher . | . . . Special . | . . . Kinetic 15 | . 15 . Thermal 27 | . 15 12 Explosive . | . . . Electromagnetic . | . . . Robot Hit Streak 3 | . 3 3 Robot Miss Streak 9 | . 9 1 Penetration Max . | . . . Secondary Targets . | . . . Shots Hit Robots 62 | . 9 53 Core Hits 23 | . 4 19 Critical Kills . | . . . Critical Parts Destroyed . | . . . Critical Strikes 6 | . . 6 Sever 6 | . . 6 Melee Attacks 64 | . . 64 Impact . | . . . Slashing 64 | . . 64 Piercing . | . . . Sneak Attacks 9 | . . 9 Combat Hostiles . | . . . Follow-up Attacks 7 | . . 7 Damage Inflicted 2164 | . 142 2022 Guns 108 | . 108 . Cannons 177 | . 34 143 Explosions . | . . . Melee 1879 | . . 1879 Ramming . | . . . Kinetic 97 | . 97 . Thermal 188 | . 45 143 Explosive . | . . . Electromagnetic . | . . . Impact . | . . . Slashing 1879 | . . 1879 Piercing . | . . . Highest Corruption 8 | . . 8 Average Corruption 5 | . . 5 Corruption Purged . | . . . Corruption Blocked . | . . . Effects 15 | . . 15 Message Errors 3 | . . 3 Matter Fused 3 | . . 3 Heat Flow Errors 5 | . . 5 Energy Discharges 2 | . . 2 Data Loss (major) 1 | . . 1 Alerts 1 | . . 1 Overload Shots . | . . . Overflow Damage 116 | . . 116 Projectiles . | . . . Explosions . | . . . Melee 116 | . . 116 Knockbacks . | . . . Impact . | . . . Kinetic . | . . . Secondary . | . . . Self-Inflicted Damage . | . . . Shots . | . . . Rammed . | . . . Targets Rammed . | . . . Kicked . | . . . Crushed . | . . . Highest Temperature 276 | . 234 276 Average Temperature 102 | . 122 93 Received Heat Transfer 717 | . 72 645 Effects 2 | . . 2 Energy Bleed 1 | . . 1 Interference 1 | . . 1 Siege Activations . | . . . Robots Corrupted . | . . . Combat Hostiles . | . . . Parts Fried . | . . . Impact Corruptions . | . . . Robots Melted . | . . . Combat Hostiles . | . . . Parts Melted . | . . . Heat Transferred 358 | . 99 259 Parts Sabotaged . | . . . Parts Stolen . | . . . Parts Stripped . | . . . Power Chain Reactions . | . . . Alert | -11 -10 -9 ------- Run | Yrd Mat Mat Peak Influence 299 | . 105 299 Initial 44 | . . 44 Average 133 | . 45 164 Maximum Alert Level 1 | . . 1 Low Security (%) 72 | . 100 62 Level 1 27 | . . 37 Level 2 . | . . . Level 3 . | . . . Level 4 . | . . . Level 5 . | . . . High Security . | . . . Max Security . | . . . Squads Dispatched 4 | . 2 2 Investigation 4 | . 2 2 Extermination . | . . . Reinforcement . | . . . Assault . | . . . Garrison . | . . . Intercept . | . . . Searches Triggered . | . . . Construction Impeded . | . . . Haulers Reinforced . | . . . Active Scanning Responses . | . . . Cargo Convoy Interrupts . | . . . Stealth | -11 -10 -9 --------- Run | Yrd Mat Mat Distress Signals 3 | . . 3 Communications Jammed . | . . . Distress Signals . | . . . Times Spotted 32 | . 4 28 Peak Tracking Total 9 | . 2 9 Tactical Retreats 6 | . 1 5 Traps | -11 -10 -9 ------- Run | Yrd Mat Mat Traps Triggered 3 | . 1 2 Indirectly . | . . . Trap Hack Attempts . | . . . Triggered . | . . . Disarmed . | . . . Reprogrammed . | . . . Reused . | . . . Traps Extracted . | . . . Installed . | . . . Triggered . | . . . Machines | -11 -10 -9 ---------- Run | Yrd Mat Mat Machines Disabled 1 | . . 1 Max in Single Turn 1 | . . 1 Machines Repaired . | . . . Machines Dismantled . | . . . Machines Sabotaged . | . . . Overloaded Fab Kills . | . . . Hacking | -11 -10 -9 --------- Run | Yrd Mat Mat Machines Accessed 6 | . 3 3 Terminals 6 | . 3 3 Fabricators . | . . . Repair Stations . | . . . Recycling Units . | . . . Scanalyzers . | . . . Garrison Access . | . . . Total Hacks 24 | . 14 10 Successful 8 | . 6 2 Failed 16 | . 8 8 Catastrophic 5 | . 2 3 Database Lockouts . | . . . Manual 9 | . 4 5 Terminals 24 | . 14 10 Fabricators . | . . . Repair Stations . | . . . Recycling Units . | . . . Scanalyzers . | . . . Garrison Access . | . . . Terminal Hacks 5 | . 4 1 Prototype ID Bank 1 | . 1 . Recycling Unit Index 1 | . 1 . Locate Traps 1 | . . 1 Patrol Status 1 | . 1 . Hauler Manifests 1 | . 1 . Fabricator Hacks . | . . . Repair Station Hacks . | . . . Recycling Unit Hacks . | . . . Scanalyzer . | . . . Garrison Access Hacks . | . . . Unauthorized Hacks 3 | . 2 1 Terminals 3 | . 2 1 Botnet 3 | . 2 1 Fabricators . | . . . Repair Stations . | . . . Recycling Units . | . . . Scanalyzers . | . . . Garrison Access . | . . . Data Cores Recovered . | . . . Used . | . . . Hacking Detections 6 | . 3 3 Full Trace Events 4 | . 2 2 Feedback Events 1 | . . 1 Corruption 1 | . . 1 Feedback Blocked . | . . . Robot Schematics Acquired . | . . . Robots Built . | . . . Authchips . | . . . Time . | . . . Total Robot Build Rating . | . . . Part Schematics Acquired . | . . . Parts Built . | . . . Authchips . | . . . Time . | . . . Total Part Build Rating . | . . . Parts Repaired . | . . . Time . | . . . Parts Recycled . | . . . Recycled Matter . | . . . Retrieved Matter . | . . . Retrieved Components . | . . . Parts Scanalyzed . | . . . Part Schematics Acquired . | . . . Parts Damaged . | . . . Bothacking | -11 -10 -9 ------------ Run | Yrd Mat Mat Used RIF Installer . | . . . Robots Hacked . | . . . Non-combat . | . . . Combat . | . . . Robot Hacks Applied . | . . . Relay Couplers Released . | . . . Fabnet Peak Effective % . | . . . Robots Rewired . | . . . Allies Hacked . | . . . Hacks Repelled . | . . . Allies | -11 -10 -9 -------- Run | Yrd Mat Mat Total Allies . | . . . Largest Group . | . . . Highest-Rated Group . | . . . Highest-Rated Ally . | . . . Total Orders . | . . . Ally Attacks . | . . . Total Damage . | . . . Kills . | . . . Allies Corrupted . | . . . Allies Melted . | . . . Intel | -11 -10 -9 ------- Run | Yrd Mat Mat Robot Analysis Total . | . . . Derelict Logs Recovered . | . . . Drone Launches . | . . . Drone Recoveries . | . . . Exploration | -11 -10 -9 ------------- Run | Yrd Mat Mat Turns Passed 988 | . 259 729 Spaces Moved 677 | 1 210 466 Core 4 | . . 4 Treads . | . . . Legs 381 | 1 83 297 Wheels 292 | . 127 165 Hover . | . . . Flight . | . . . Fastest Speed 80 | 120 80 80 Average Speed 103 | 120 96 107 Slowest Speed 150 | 120 120 150 Overloaded Moves . | . . . Propulsion Burnouts . | . . . Robots Hopped . | . . . Cave-ins Triggered . | . . . Exploration Rate (%) 25 | 2 40 35 Regions Visited 2 Branch Regions . Pre-discovered Areas . | . . . Known Exits Taken . | . . . Unknown Exits Taken 2 | 1 1 . Scrap Searched . | . . . Spaces Dug . | . . . Terrain Destroyed . | . . . Melee . | . . . Projectile . | . . . AOE . | . . . Terrain Rammed . | . . . Walls Destroyed . | . . . Machines Disabled . | . . . Actions | -11 -10 -9 --------- Run | Yrd Mat Mat Total 833 | . 237 596 Wait 15 | . . 15 Move 675 | . 209 466 Hop . | . . . Pick Up 14 | . 4 10 Fast Attach 15 | . 2 13 Attach 2 | . . 2 Detach 2 | . . 2 Swap 13 | . 3 10 Drop 25 | . 4 21 Fire 21 | . 15 6 Melee 51 | . . 51 Ram . | . . . Kick . | . . . Crush . | . . . Escape Stasis . | . . . Rewire . | . . . Trap . | . . . Miscellaneous . | . . . Route ------- -11/Scrapyard -10/Materials -9/Materials (discovered 2 exits: *Min x2) History --------- Turn | Location | Event 1 | -11/Scrapyard | Discovered new exit (range 0) 1 | -11/Scrapyard | Entered Materials 229 | -10/Materials | Discovered new exit (range 8) 260 | -10/Materials | Entered another Materials area 260 | -9/Materials | Evolved 2 slots: Utility x2 325 | -9/Materials | Build established: Mutant 470 | -9/Materials | Core integrity fell below 50% 520 | -9/Materials | Lost 8 parts (1p4n3u) 586 | -9/Materials | Discovered new exit (range 11) 587 | -9/Materials | Discovered new exit (range 10) 626 | -9/Materials | Core integrity fell below 20% 861 | -9/Materials | Identified exit to Mines 868 | -9/Materials | Build established: Scavenger-Mutant 989 | -9/Materials | Destroyed by G-34 Mercenary with Small Laser Last Messages --------------- 00921_ R-06 Scavenger collects Lgt. Armor Plating. 00922_ K-01 Serf collects debris. 00923_ System corrupted: Energy discharge (-76). 00925_ K-01 Serf collects debris. 00929_ R-06 Scavenger collects Lgt. Ion Engine. 00932_ K-01 Serf collects debris. 00932_ R-06 Scavenger collects Heat Sink. 00935_ R-06 Scavenger collects EM Pulse Gun. 00935_ K-01 Serf collects debris. 00943_ Sneak attack on A-02 Transporter. 00951_ Connecting with Terminal... 00951_ ALERT: Suspicious activity at Terminal M009. Dispatching Investigation squad. 00953_ A-02 Transporter destroyed. 00957_ Dropped Grenade Launcher. 00957_ Acquired Rocket Launcher. 00964_ W-16 Scout sends out distress signal. 00967_ K-01 Serf collects debris. 00985_ Critical hit (Burn: +37). 00989_ Y-45 Defender destroyed. Map ----- +----------------------------------------------------+ | ???????????????????????????????? | | ???????????????????????????????? | | ???????????????????????????????? | | ???????????????????????????????? | | ???????????????????????????????? | | ???????????????????????????????? | | ???????????????????????????????? | | ???????????????????????????????? | | ????????????????????? ??? ????? | | ????????????????????? ??? ??? | | ????????????????????? ? ??? | | ????????????????????? ? ??? | | ????????????????????? ? "??? | | ????????????????????? ? [ ""?? | | ????????????????????? ? ""?? | | ?????????????????????# # """? | | ?????????????????????# # ""?? | | ?????????????????????# # ??? | | ?????????????????????# # ???? | | ?????????????????????# ##+#??### | | ?###+###???###+###???# #? # | | ## ##### ]!#???# # # | | ] ##### g# ?? | | T[%]= gg/ ???? | | ^ ]]## #####%#????? | | ## ##### *## #???#@#????? | | ?###+###???######## #???#u#????? | | ?????????????????? ???# #????? | | ?????????????????? ???# #????? | | ?????????????????? ???# #????? | | ?????????????????? ???# #????? | | ?????????????????? ???# #????? | | ??????????????????###???#w#????? | | ????????????????????????# #????? | | ????????????????????????# #????? | | ????????????????????????# #????? | | ????????????????????????? ?????? | | ????????????????????????? ?????? | | ????????????????????????? ?????? | | ????????????????????????? ?????? | | ?????????????????????????"?????? | | ????????????????????????? ?????? | | ???????????????????????????????? | | ???????????????????????????????? | | ???????????????????????????????? | | ???????????????????????????????? | | ???????????????????????????????? | | ???????????????????????????????? | | ???????????????????????????????? | | ???????????????????????????????? | +----------------------------------------------------+ Best States ------------- Heat Dissipation 42 Energy Generation 12 Energy Capacity 265 Matter Stores 300 Matter Capacity 300 Sight Range 16 Robot Scan Range 14 Terrain Scan Density 160 ECM Strength 2 Utility Shielding 33 Evasion (%) 55 Item Schematics ----------------- None Robot Schematics ------------------ None Fabricated ------------ Nothing Alien Tech Used ----------------- None Achievements -------------- None Challenges ------------ None Game ------ Seed CompositeZioniteBarrier Manual? 0 Play Time 00:08:40 Cumulative 838.0 hours Start 2024.08.07 @ 10:40:19 End 2024.08.07 @ 10:48:01 Sessions 1 Manual Loads 0 Difficulty Rogue Special Mode None Game No. 995 Rogue 716 Adventurer 124 Explorer 155 Win Type - Total 34 Types 27/0/5/1/0/0/0/1/0 Lore% 71 Gallery% 88 Achievement% 78 Wizard Run 0 Options --------- Layout 0 ASCII 0 Keyboard 1 Movement Numpad Keybinds 0 Fullscreen 2 Font 18/Smallcaps Map View 76x50 Zoom Use 0% Tactical HUD 1 Map Filters NONE Filters NONE Steam 1 RUN: f6f1c7af-8665-4018-9146-695841baf7f1